Workbook

Sheet Sheet1
A2: Where is minimum wage going?
D3: amount of increase | E3: percentage of increase
B4: now | C4: 10.1
B5: 2020-01-01 | C5: 11 | D5: =C5-C4 -> 0.9 | E5: =D5/C4 -> 0.08910891089
B6: 2021-01-01 | C6: 11.75 | D6: 0.75 | E6: 0.06818181818
B7: 2022-01-01 | C7: 12.5 | D7: 0.75 | E7: 0.06382978723
B8: 2023-01-01 | C8: 13.25 | D8: 0.75 | E8: 0.06
B9: 2024-01-01 | C9: 14 | D9: 0.75 | E9: 0.05660377358
B10: 2025-01-01 | C10: 15 | D10: 1 | E10: 0.07142857143

Sheet Sheet2
B1: Total Budget | C1: Payroll Expenses | D1: Minimum Wage Increase | E1: How Much Will Payroll Expenses Increase | F1: New Total Budget | G1: How Much Will You Need to Increase Your budget?
A2: Sample | B2: 100000 | C2: 60000 | D2: 0.09 | E2: =C2*D2 -> 5400 | F2: =B2+E2 -> 105400 | G2: =E2/B2 -> 0.054
A4: 2020-01-01 | B4: 398139 | C4: 266727 | D4: 0.09 | E4: =C4*D4 -> 24005.43 | F4: =B4+E4 -> 422144.43 | G4: =E4/B4 -> 0.06029409327
A6: 2021-01-01 | B6: 470757 | C6: 280954 | D6: 0.07 | E6: =C6*D6 -> 19666.78 | F6: =B6+E6 -> 490423.78 | G6: =E6/B6 -> 0.04177692525
B8: Tuition Increase
B10: Current Tuition | C10: How Much to Cover Min Wage Increase? | D10: New Tuition Rate
B11: 240 | C11: 0.04 | D11: =B11*C11+B11 -> 249.6
B12: 258 | C12: 0.04 | D12: 268.32
B13: 368 | C13: 0.04 | D13: 382.72
D14: 0
D15: 0
D16: 0
D17: 0
D18: 0
D19: 0
D20: 0
D21: 0
